bitfinex-derivatives/quotes_BNBF0:USTF0_20250413
["timestamp","ask_amount","ask_price","bid_price","bid_amount"]
[1744555292685,0.2969545,585.85,585.28,3.62]
[1744555293790,0.34137848,585.86,585.28,3.62]
[1744555293985,0.29695678,585.85,585.28,3.62]
[1744555297493,0.34137848,585.86,585.28,3.62]
[1744555297695,0.29695756,585.85,585.28,3.62]
[1744555302195,0.63834187,585.85,585.28,3.62]
[1744555302400,0.29695756,585.84,585.28,3.62]
[1744555303101,0.34139596,585.83,585.28,3.62]
[1744555303403,0.29695756,585.82,585.28,3.62]
[1744555305005,0.34140762,585.81,585.28,3.62]
[1744555305300,0.29695756,585.8,585.28,3.62]
[1744555309007,0.34140762,585.81,585.28,3.62]
[1744555309200,0.29702911,585.8,585.28,3.62]
[1744555323111,0.34140762,585.81,585.28,3.62]
[1744555323314,0.29699508,585.8,585.28,3.62]
[1744555324613,0.34140762,585.81,585.28,3.62]
[1744555324814,0.29699009,585.8,585.28,3.62]
[1744555327217,0.34140762,585.81,585.28,3.62]
[1744555332219,0.2969708,585.8,585.28,3.62]
[1744555334015,0.34140762,585.81,585.28,3.62]
[1744555338424,0.2969184,585.8,585.28,3.62]
[1744555339018,0.34140762,585.81,585.28,3.62]
[1744555339222,0.29692104,585.8,585.28,3.62]
[1744555340322,0.34140762,585.81,585.28,3.62]
[1744555341527,0.29725297,586.15,585.28,3.62]
[1744555341719,0.3412154,586.14,585.28,3.62]
[1744555345529,0.29689978,586.13,585.28,3.62]
[1744555345829,0.34122705,586.12,585.28,3.62]
[1744555347729,0.29690037,586.11,585.28,3.62]
[1744555352032,0.29689551,586.1,585.28,3.62]
[1744555352232,0.29689551,586.11,585.28,3.62]
[1744555352430,0.34122705,586.12,585.28,3.62]
[1744555354537,0.29685413,586.11,585.28,3.62]
[1744555355132,0.34122705,586.12,585.28,3.62]
[1744555355331,0.29685348,586.11,585.28,3.62]
[1744555358238,0.34122705,586.12,585.28,3.62]
[1744555358439,0.2968532,586.11,585.28,3.62]
[1744555364541,0.34122705,586.12,585.28,3.62]
[1744555364742,0.29689558,586.11,585.28,3.62]
[1744555364942,0.29689558,586.17,585.28,3.62]
[1744555365139,0.63809934,586.16,585.28,3.62]
[1744555365340,0.29689558,586.15,585.28,3.62]
[1744555365937,0.3412154,586.14,585.28,3.62]
[1744555366239,0.29689403,586.13,585.28,3.62]
[1744555366441,0.34122705,586.12,585.28,3.62]
[1744555366838,0.29689403,586.11,585.28,3.62]
[1744555370946,0.34122705,586.12,585.28,3.62]
[1744555371141,0.29687896,586.11,585.28,3.62]
[1744555371547,0.34122705,586.12,585.28,3.62]
[1744555371849,0.2968847,586.11,585.28,3.62]
[1744555374044,0.34122705,586.12,585.28,3.62]
[1744555374349,0.2968835,586.11,585.28,3.62]
[1744555375651,0.34122705,586.12,585.28,3.62]
[1744555375846,0.29688348,586.11,585.28,3.62]
[1744555380555,0.29686538,586.1,585.28,3.62]
[1744555380755,0.29686538,586.11,585.28,3.62]
[1744555380954,0.29686538,586.1,585.28,3.62]
[1744555381454,0.29686538,586.09,585.28,3.62]
[1744555381653,0.2968657,586.08,585.28,3.62]
[1744555381853,0.2968657,586.07,585.28,3.62]
[1744555382055,0.2968657,586.11,585.28,3.62]
[1744555382254,0.2968657,586.1,585.28,3.62]
[1744555382455,0.2968657,586.09,585.28,3.62]
[1744555382655,0.2968657,586.08,585.28,3.62]
[1744555382955,0.2968657,586.07,585.28,3.62]
[1744555383155,0.34122705,586.12,585.28,3.62]
[1744555383455,0.29688,586.11,585.28,3.62]
[1744555384658,0.34122705,586.12,585.28,3.62]
[1744555384852,0.29687875,586.11,585.28,3.62]
[1744555392658,0.34122705,586.12,585.28,3.62]
[1744555392864,0.29686268,586.11,585.28,3.62]
[1744555395868,0.34122705,586.12,585.28,3.62]
[1744555396168,0.29685618,586.11,585.28,3.62]
[1744555397465,0.34122705,586.12,585.28,3.62]
[1744555397669,0.29685736,586.11,585.28,3.62]
[1744555398965,0.34122705,586.12,585.28,3.62]
[1744555399173,0.29685705,586.11,585.28,3.62]
[1744555402166,0.34122705,586.12,585.28,3.62]
[1744555405171,0.2969003,586.11,585.28,3.62]
[1744555405474,0.34123869,586.1,585.28,3.62]
[1744555405673,0.29690028,586.09,585.28,3.62]
[1744555406374,0.34125034,586.08,585.28,3.62]
[1744555406574,0.29690028,586.07,585.28,3.62]
[1744555406875,0.34126198,586.06,585.28,3.62]
[1744555407374,0.29690028,586.05,585.28,3.62]
[1744555407574,0.34127363,586.04,585.28,3.62]
[1744555407871,0.29690028,586.03,585.28,3.62]
[1744555408175,0.34128528,586.02,585.28,3.62]
[1744555408375,0.29690028,586.01,585.28,3.62]
[1744555408576,0.34129692,586.0,585.28,3.62]
[1744555408771,0.29695415,585.99,585.28,3.62]
[1744555408976,0.34130857,585.98,585.28,3.62]
[1744555409169,0.29695415,585.97,585.28,3.62]
[1744555409374,0.63826855,585.97,585.28,3.62]
[1744555409576,0.29695415,585.96,585.28,3.62]
[1744555411779,0.3413144,585.97,585.28,3.62]
[1744555412072,0.29694964,585.96,585.28,3.62]
[1744555414075,0.3413144,585.97,585.28,3.62]
[1744555414278,0.2969481,585.96,585.28,3.62]
[1744555418481,0.29695437,585.95,585.28,3.62]
[1744555418777,0.29695437,585.96,585.28,3.62]
[1744555418983,0.29695437,585.94,585.28,3.62]
[1744555419178,0.29695437,585.93,585.28,3.62]
[1744555419381,0.29695437,585.96,585.28,3.62]
[1744555419581,0.29695437,585.95,585.28,3.62]
[1744555419782,0.29695437,585.94,585.28,3.62]
[1744555419978,0.29695437,585.96,585.28,3.62]
[1744555420182,0.29695437,585.95,585.28,3.62]
[1744555420379,0.29695437,585.96,585.28,3.62]
[1744555420586,0.29695437,585.95,585.28,3.62]
[1744555420780,0.29695437,585.94,585.28,3.62]
[1744555420981,0.3413144,585.97,585.28,3.62]
[1744555421280,0.29694879,585.96,585.28,3.62]
[1744555421680,0.34132605,585.95,585.28,3.62]
[1744555421986,0.29694879,585.94,585.28,3.62]
[1744555422186,0.3413377,585.93,585.28,3.62]
[1744555422386,0.29694879,585.92,585.28,3.62]
[1744555423082,0.3413377,585.93,585.28,3.62]
[1744555423285,0.29697151,585.91,585.28,3.62]
[1744555423486,0.29697151,585.9,585.28,3.62]
[1744555423686,0.29697151,585.92,585.28,3.62]
[1744555423988,0.29730376,585.89,585.28,3.62]
[1744555424189,0.29697151,585.88,585.28,3.62]
[1744555424592,0.34137265,585.87,585.28,3.62]
[1744555424790,0.29697151,585.86,585.28,3.62]
[1744555424990,0.34138431,585.85,585.28,3.62]
[1744555425291,0.29697151,585.84,585.28,3.62]
[1744555425690,0.34139596,585.83,585.28,3.62]
[1744555425889,0.29697151,585.82,585.28,3.62]
[1744555426290,0.34139596,585.83,585.28,3.62]
[1744555426487,0.29702146,585.82,585.28,3.62]
[1744555427996,0.29702356,585.81,585.28,3.62]
[1744555428196,0.29702356,585.82,585.28,3.62]
[1744555431398,0.29699019,585.81,585.28,3.62]
[1744555431598,0.29699019,585.82,585.28,3.62]
[1744555431799,0.29699019,585.81,585.28,3.62]
[1744555432098,0.29699019,585.8,585.28,3.62]
[1744555432300,0.29699019,585.82,585.28,3.62]
[1744555432595,0.29699019,585.81,585.28,3.62]
[1744555432795,0.29699019,585.82,585.28,3.62]
[1744555433000,0.34139596,585.83,585.28,3.62]
[1744555433199,0.29699022,585.82,585.28,3.62]
[1744555434800,0.29695048,585.81,585.28,3.62]
[1744555435099,0.29695048,585.8,585.28,3.62]
[1744555435296,0.29695048,585.79,585.28,3.62]
[1744555435497,0.29695048,585.78,585.28,3.62]
[1744555435800,0.29695048,585.77,585.28,3.62]
[1744555435999,0.34139596,585.83,585.28,3.62]
[1744555436297,0.29695161,585.82,585.28,3.62]
[1744555436501,0.34139596,585.83,585.28,3.62]
[1744555436705,0.29695158,585.82,585.28,3.62]
[1744555439208,0.34139596,585.83,585.28,3.62]
[1744555440710,0.29718063,586.17,585.28,3.62]
[1744555440913,0.29689717,586.16,585.28,3.62]
[1744555441406,0.63810093,586.16,585.28,3.62]
[1744555441608,0.29689717,586.15,585.28,3.62]
[1744555442007,0.34120376,586.16,585.28,3.62]
[1744555442411,0.29687061,586.15,585.28,3.62]
[1744555444311,0.34120376,586.16,585.28,3.62]
[1744555445606,0.29687109,586.15,585.28,3.62]
[1744555445810,0.34120376,586.16,585.28,3.62]
[1744555446707,0.29686198,586.15,585.28,3.62]
[1744555448007,0.34120376,586.16,585.28,3.62]
[1744555449110,0.29687072,586.15,585.28,3.62]
[1744555449312,0.34120376,586.16,585.28,3.62]
[1744555449507,0.29687133,586.15,585.28,3.62]
[1744555450313,0.34120376,586.16,585.28,3.62]
[1744555450513,0.29687443,586.15,585.28,3.62]
[1744555451413,0.63808401,586.15,585.28,3.62]
[1744555451613,0.29687443,586.14,585.28,3.62]
[1744555451810,0.3412154,586.14,585.28,3.62]
[1744555452009,0.29692016,586.13,585.28,3.62]
[1744555453616,0.34122705,586.12,585.28,3.62]
[1744555453812,0.29692016,586.11,585.28,3.62]
[1744555454110,0.34123869,586.1,585.28,3.62]
[1744555454315,0.29692016,586.09,585.28,3.62]
[1744555454610,0.34125034,586.08,585.28,3.62]
[1744555454917,0.29692016,586.07,585.28,3.62]
[1744555455110,0.29721616,586.13,585.28,3.62]
[1744555455111,0.63820555,586.06,585.28,3.62]
[1744555455414,0.29694357,586.05,585.28,3.62]
[1744555456214,0.34127363,586.04,585.28,3.62]
[1744555456411,0.29694357,586.03,585.28,3.62]
[1744555456615,0.34128528,586.02,585.28,3.62]
[1744555457116,0.29694357,586.01,585.28,3.62]
[1744555457415,0.34129692,586.0,585.28,3.62]
[1744555457617,0.29694357,585.99,585.28,3.62]
[1744555457816,0.63824632,585.99,585.28,3.62]
[1744555458117,0.29694357,585.98,585.28,3.62]
[1744555459812,0.34130275,585.99,585.28,3.62]
[1744555460017,0.29693474,585.98,585.28,3.62]
[1744555461112,0.3413144,585.97,585.28,3.62]
[1744555461315,0.29693474,585.96,585.28,3.62]
[1744555461517,0.34132605,585.95,585.28,3.62]
[1744555461715,0.29693474,585.94,585.28,3.62]
[1744555462016,0.3413377,585.93,585.28,3.62]
[1744555462217,0.29693474,585.92,585.28,3.62]
[1744555466221,0.3413377,585.93,585.28,3.62]
[1744555466417,0.29698893,585.92,585.28,3.62]
[1744555466720,0.34134935,585.91,585.28,3.62]
[1744555466920,0.29698893,585.9,585.28,3.62]
[1744555467522,0.341361,585.89,585.28,3.62]
[1744555468022,0.2970378,585.88,585.28,3.62]
[1744555468222,0.34137265,585.87,585.28,3.62]
[1744555468418,0.2970378,585.86,585.28,3.62]
[1744555468620,0.34138431,585.85,585.28,3.62]
[1744555468823,0.2970378,585.84,585.28,3.62]
[1744555469022,0.34139596,585.83,585.28,3.62]
[1744555469223,0.2970378,585.82,585.28,3.62]
[1744555475924,0.34139596,585.83,585.28,3.62]
[1744555476221,0.29703762,585.82,585.28,3.62]
[1744555479129,0.34139596,585.83,585.28,3.62]
[1744555479328,0.29703666,585.82,585.28,3.62]
[1744555479631,0.34139596,585.83,585.28,3.62]
[1744555483225,0.29704964,585.82,585.28,3.62]
[1744555485627,0.34139596,585.83,585.28,3.62]
[1744555485932,0.2970717,585.82,585.28,3.62]
[1744555486934,0.34140762,585.81,585.28,3.62]
[1744555487133,0.2970717,585.8,585.28,3.62]
[1744555487333,0.34141927,585.79,585.28,3.62]
[1744555487533,0.2970717,585.78,585.28,3.62]
[1744555487934,0.34143093,585.77,585.28,3.62]
[1744555488134,0.2970717,585.76,585.28,3.62]
[1744555488328,0.34144259,585.75,585.28,3.62]
[1744555488632,0.2970717,585.74,585.28,3.62]
[1744555488830,0.34145425,585.73,585.28,3.62]
[1744555489034,0.2970717,585.72,585.28,3.62]
[1744555489236,0.34146591,585.71,585.28,3.62]
[1744555489535,0.2970717,585.7,585.28,3.62]
[1744555489935,0.2970717,585.7,584.63,0.29735838]
[1744555492235,0.34146591,585.71,584.63,0.29735838]
[1744555492430,0.29708519,585.7,584.64,0.3141437]
[1744555492631,0.29708519,585.7,584.64,0.514]
[1744555492933,0.29708519,585.7,584.65,0.3141437]
[1744555493331,0.29708519,585.7,584.65,0.9431437]
[1744555493537,0.29708519,585.7,584.66,0.3141437]
[1744555493931,0.29708519,585.7,584.66,0.9781437]
[1744555494134,0.29708519,585.7,584.67,0.3141437]
[1744555494737,0.34146591,585.71,584.66,0.664]
[1744555497838,0.2971157,585.7,584.66,0.664]
[1744555498039,0.34147757,585.69,584.66,0.664]
[1744555498341,0.2971157,585.68,584.66,0.664]
[1744555498536,0.34148923,585.67,584.66,0.664]
[1744555498736,0.2971157,585.66,584.66,0.664]
[1744555498933,0.34150089,585.65,584.66,0.664]
[1744555499139,0.2971157,585.64,584.66,0.664]
[1744555499440,0.34151255,585.63,584.66,0.664]
[1744555499636,0.2971157,585.62,584.66,0.664]
[1744555501538,0.34151255,585.63,584.66,0.664]
[1744555504440,0.29711853,585.62,584.66,0.664]
[1744555504735,0.34151255,585.63,584.66,0.664]
[1744555504938,0.29712453,585.62,584.66,0.664]
[1744555505139,0.34152422,585.61,584.66,0.664]
[1744555505434,0.29712453,585.6,584.66,0.664]
[1744555506939,0.34153588,585.59,584.66,0.664]
[1744555507239,0.29712453,585.58,584.66,0.664]
[1744555507438,0.63866624,585.58,584.66,0.664]
[1744555507739,0.63867208,585.57,584.66,0.664]
[1744555507936,0.34155338,585.56,584.66,0.664]
[1744555508140,0.29721132,585.55,584.66,0.664]
[1744555508544,0.34156505,585.54,584.66,0.664]
[1744555508740,0.29721132,585.53,584.66,0.664]
[1744555509335,0.34157671,585.52,584.66,0.664]
[1744555509741,0.2972497,585.51,584.66,0.664]
[1744555510042,0.34158838,585.5,584.66,0.664]
[1744555510246,0.2972497,585.49,584.66,0.664]
[1744555510448,0.34160005,585.48,584.66,0.664]
[1744555510643,0.63914912,585.48,584.66,0.664]
[1744555511441,0.34160588,585.47,584.66,0.664]
[1744555513747,0.29754907,585.46,584.66,0.664]
[1744555513944,0.34161755,585.45,584.66,0.664]
[1744555516246,0.34161755,585.45,584.66,1.773]
[1744555519747,0.29724191,585.44,584.66,1.773]
[1744555519952,0.34162922,585.43,584.66,1.773]
[1744555520253,0.29724191,585.42,584.66,1.773]
[1744555520453,0.3416409,585.41,584.66,1.773]
[1744555520754,0.29724191,585.4,584.66,1.773]
[1744555521052,0.34165257,585.39,584.66,1.773]
[1744555521255,0.29724191,585.38,584.66,1.773]
[1744555522555,0.29724191,585.38,584.66,2.402]
[1744555523056,0.29724191,585.38,584.66,2.937]
[1744555527158,0.34165257,585.39,584.66,2.937]
[1744555527355,0.29724119,585.38,584.66,2.937]
[1744555530365,0.34165257,585.39,584.66,2.937]
[1744555530565,0.297231,585.38,584.66,2.937]
[1744555534467,0.34165257,585.39,584.66,2.937]
[1744555534667,0.29723559,585.38,584.66,2.937]
[1744555541577,0.34165257,585.39,584.66,2.937]
[1744555541778,0.29713549,585.37,584.66,2.937]
[1744555541978,0.34165257,585.39,584.66,2.937]
[1744555542379,1.2961398,585.79,584.66,2.937]
[1744555542679,0.3414251,585.78,584.66,2.937]
[1744555550592,0.3414251,585.78,584.66,3.558]
[1744555551791,0.2970323,585.77,584.66,3.558]
[1744555551985,0.2970323,585.77,584.67,0.31409029]
[1744555554994,0.2970323,585.77,584.67,0.93009029]
[1744555555193,0.2970323,585.77,584.68,0.31409029]
[1744555555996,0.2970323,585.77,584.68,0.99409029]
[1744555556297,0.2970323,585.77,584.69,0.31409029]
[1744555559598,0.29703766,585.76,584.7,0.31409576]
[1744555559792,0.29703766,585.75,584.69,0.31409576]
[1744555559997,0.29703766,585.77,584.7,0.31409576]
[1744555560196,0.29703766,585.77,584.69,0.31409576]
[1744555560394,0.29703766,585.77,584.7,0.31409576]
[1744555560597,0.29703766,585.77,584.69,0.31409576]
[1744555560899,0.3414251,585.78,584.68,1.238]
[1744555561098,0.29703722,585.77,584.69,0.31409524]
[1744555561500,0.29703722,585.77,584.68,1.238]
[1744555562204,0.6388521,585.78,584.68,1.238]
[1744555562398,0.29711262,585.77,584.68,1.238]
[1744555565404,0.6388521,585.78,584.68,1.238]
[1744555565603,0.29708848,585.77,584.68,1.238]
[1744555565902,0.34143676,585.76,584.68,1.238]
[1744555566103,0.29708848,585.75,584.68,1.238]
[1744555566303,0.34143676,585.76,584.68,1.238]
[1744555568099,0.29708928,585.75,584.68,1.238]
[1744555568303,0.34144842,585.74,584.68,1.238]
[1744555568502,0.29708928,585.73,584.68,1.238]
[1744555568699,0.34146008,585.72,584.68,1.238]
[1744555568902,0.29708928,585.71,584.68,1.238]
[1744555569405,0.29708928,585.71,584.68,1.909]
[1744555569799,0.34146008,585.72,584.68,1.909]
[1744555571404,0.34146008,585.72,584.68,2.688]
[1744555572399,0.29708688,585.71,584.68,2.688]
[1744555573804,0.34146008,585.72,584.68,2.688]
[1744555574004,0.29708517,585.71,584.68,2.688]
[1744555574302,0.29708517,585.71,584.68,3.355]
[1744555576608,0.29708517,585.71,584.69,0.31414222]
[1744555577106,0.29708517,585.71,584.7,0.523]
[1744555577301,0.29708496,585.7,584.71,0.31414339]
[1744555577501,0.29708496,585.71,584.71,0.31414339]
[1744555577802,0.29708496,585.7,584.71,0.31414339]
[1744555578006,0.29708496,585.71,584.71,0.31414339]
[1744555578206,0.29708496,585.7,584.71,0.31414339]
[1744555578408,0.29708496,585.71,584.71,0.31414339]
[1744555578707,0.29708496,585.7,584.71,0.31414339]
[1744555578907,0.29708496,585.69,584.71,0.31414339]
[1744555579109,0.29708496,585.68,584.71,0.31414339]
[1744555579404,0.29708496,585.67,584.71,0.31414339]
[1744555579610,0.29708496,585.71,584.72,0.59]
[1744555579809,0.29708496,585.7,584.72,0.59]
[1744555580105,0.29708496,585.71,584.72,0.59]
[1744555580309,0.29708496,585.7,584.72,0.59]
[1744555580510,0.29708496,585.71,584.72,0.59]
[1744555580710,0.29708496,585.7,584.72,0.59]
[1744555581006,0.29708496,585.71,584.73,0.818]
[1744555581210,0.29708496,585.7,584.73,0.818]
[1744555581410,0.29708496,585.71,584.73,0.818]
[1744555581611,0.29708496,585.7,584.73,0.818]
[1744555581806,0.29708496,585.71,584.73,0.818]
[1744555582009,0.29708693,585.7,584.73,0.818]
[1744555582310,0.29708693,585.69,584.73,0.818]
[1744555582611,0.29708693,585.68,584.73,0.818]
[1744555582906,0.29708693,585.67,584.73,0.818]
[1744555583205,0.29708693,585.66,584.73,0.818]
[1744555583411,0.34146008,585.72,584.73,0.818]
[1744555583608,0.29708294,585.71,584.73,0.818]
[1744555584911,0.34146008,585.72,584.73,0.818]
[1744555585114,0.29708756,585.71,584.73,0.818]
[1744555588013,0.34146008,585.72,584.73,0.818]
[1744555588313,0.29706654,585.71,584.73,0.818]
[1744555589613,0.29708358,585.7,584.73,0.818]
[1744555589817,0.29708358,585.71,584.73,0.818]
[1744555590012,0.29708358,585.7,584.73,0.818]
[1744555590217,0.29708358,585.71,584.73,0.818]
[1744555590414,0.29708358,585.7,584.73,0.818]
[1744555590615,0.29708358,585.69,584.73,0.818]
[1744555590816,0.29708358,585.68,584.73,0.818]
[1744555591016,0.29708358,585.71,584.73,0.818]
[1744555591218,0.29708331,585.7,584.73,0.818]
[1744555591411,0.29708331,585.71,584.73,0.818]
[1744555591618,0.29708331,585.7,584.73,0.818]
[1744555591813,0.29708331,585.71,584.73,0.818]
[1744555592618,0.34146008,585.72,584.73,0.818]
[1744555592818,0.29708596,585.71,584.73,0.818]
[1744555594115,0.34146008,585.72,584.73,0.818]
[1744555594320,0.29709283,585.71,584.74,0.557]
[1744555594716,0.34146008,585.72,584.74,0.557]
[1744555595222,0.29709312,585.71,584.75,0.504]
[1744555595922,0.34147174,585.7,584.75,0.504]
[1744555596121,0.29709312,585.69,584.75,0.504]
[1744555596422,0.63857069,585.69,584.75,0.504]
[1744555596622,0.29709312,585.68,584.75,0.504]
[1744555597523,0.29709312,585.68,584.76,0.608]
[1744555599121,0.34147757,585.69,584.76,0.608]
[1744555599320,0.29709172,585.68,584.76,0.608]
[1744555604429,0.29709172,585.68,584.77,0.49]
[1744555608032,0.29709172,585.68,584.77,1.108]
[1744555610233,0.29709277,585.67,584.77,1.108]
[1744555610434,0.29709277,585.68,584.77,1.108]
[1744555610635,0.29709277,585.67,584.77,1.108]
[1744555610831,0.29709277,585.66,584.77,1.108]
[1744555611136,0.29709277,585.65,584.77,1.108]
[1744555611336,0.29709277,585.68,584.77,1.108]
[1744555611538,0.29709277,585.67,584.77,1.108]
[1744555611732,0.29709277,585.68,584.77,1.845]
[1744555611933,0.29709277,585.67,584.77,1.845]
[1744555612236,0.29709277,585.68,584.77,1.845]
[1744555612436,0.29709277,585.67,584.77,1.845]
[1744555612632,0.29709277,585.68,584.77,1.845]
[1744555617737,0.29709277,585.68,584.77,2.59]
[1744555618841,0.34147757,585.69,584.77,2.59]
[1744555623440,0.34147757,585.69,584.77,3.064]
[1744555625445,0.29709315,585.68,584.77,3.064]
[1744555626849,0.34147757,585.69,584.77,3.064]
[1744555627049,0.2970924,585.68,584.77,3.064]
[1744555628347,0.34147757,585.69,584.77,3.064]
[1744555628552,0.29709017,585.68,584.77,3.064]
[1744555629853,0.29709017,585.68,584.77,3.556]
[1744555630947,0.34147757,585.69,584.77,3.556]
[1744555635958,0.2971238,585.68,584.77,3.556]
[1744555636158,0.34148923,585.67,584.77,3.556]
[1744555636359,0.2971238,585.66,584.77,3.556]
[1744555636658,0.63861886,585.66,584.77,3.556]
[1744555636854,0.2971238,585.65,584.77,3.556]
[1744555640860,0.34150089,585.65,584.77,3.556]
[1744555642762,0.29746259,585.64,584.77,3.556]
[1744555643162,0.34151255,585.63,584.77,3.556]
[1744555644263,0.29715834,585.62,584.77,3.556]
[1744555644463,0.34152422,585.61,584.77,3.556]
[1744555644757,0.29715834,585.6,584.77,3.556]
[1744555644961,0.34153588,585.59,584.77,3.556]
[1744555645462,0.29715821,585.58,584.77,3.556]
[1744555647967,0.34154755,585.57,584.77,3.556]
[1744555648265,0.29715821,585.56,584.77,3.556]
[1744555648467,0.34155921,585.55,584.77,3.556]
[1744555648659,0.29715821,585.54,584.77,3.556]
[1744555648864,0.34157088,585.53,584.77,3.556]
[1744555649063,0.29715821,585.52,584.77,3.556]
[1744555649268,0.34158255,585.51,584.77,3.556]
[1744555649466,0.29715821,585.5,584.77,3.556]
[1744555649669,0.34159422,585.49,584.77,3.556]
[1744555649867,0.29715821,585.48,584.77,3.556]
[1744555650064,0.34160588,585.47,584.77,3.556]
[1744555650269,0.29715821,585.46,584.77,3.556]
[1744555650469,0.34160588,585.47,584.77,3.556]
[1744555650664,0.29720243,585.46,584.77,3.556]
[1744555652168,0.34160588,585.47,584.77,3.556]
[1744555652372,0.29720194,585.46,584.77,3.556]
[1744555653366,0.34160588,585.47,584.77,3.556]
[1744555655271,0.29719731,585.46,584.77,3.556]
[1744555655478,0.34160588,585.47,584.77,3.556]
[1744555657975,0.29720124,585.46,584.77,3.556]
[1744555658473,0.34160588,585.47,584.77,3.556]
[1744555658673,0.29720087,585.46,584.77,3.556]
[1744555660076,0.34160588,585.47,584.77,3.556]
[1744555665278,0.29721413,585.46,584.77,3.556]
[1744555666372,0.34160588,585.47,584.77,3.556]
[1744555666578,0.2972142,585.46,584.77,3.556]
[1744555667880,0.34160588,585.47,584.77,3.556]
[1744555668179,0.29725074,585.46,584.77,3.556]
[1744555668474,0.34161755,585.45,584.77,3.556]
[1744555668680,0.29725074,585.44,584.77,3.556]
[1744555668881,0.34162922,585.43,584.77,3.556]
[1744555669085,0.29725074,585.42,584.77,3.556]
[1744555669381,0.3416409,585.41,584.77,3.556]
[1744555669578,0.29725074,585.4,584.77,3.556]
[1744555669775,0.34165257,585.39,584.77,3.556]
[1744555669979,0.29725074,585.38,584.77,3.556]
[1744555670276,0.34166424,585.37,584.77,3.556]
[1744555670478,0.29725074,585.36,584.77,3.556]
[1744555670781,0.63892082,585.36,584.77,3.556]
[1744555670979,0.29725074,585.35,584.77,3.556]
[1744555672683,0.34167008,585.36,584.77,3.556]
[1744555672882,0.29723429,585.35,584.77,3.556]
[1744555675785,0.34167008,585.36,584.77,3.556]
[1744555675984,0.29722447,585.35,584.77,3.556]
[1744555677385,0.34167008,585.36,584.77,3.556]
[1744555677684,0.29722985,585.35,584.77,3.556]
[1744555677885,0.34167008,585.36,584.77,3.556]
[1744555679284,0.29727337,585.35,584.77,3.556]
[1744555680983,0.63894929,585.35,584.77,3.556]
[1744555681286,0.29727337,585.34,584.77,3.556]
[1744555682492,0.34167592,585.35,584.77,3.556]
[1744555687785,0.29729541,585.34,584.77,3.556]
[1744555687986,0.34168759,585.33,584.77,3.556]
[1744555688387,0.29729541,585.32,584.77,3.556]
[1744555688587,0.34169927,585.31,584.77,3.556]
[1744555688793,0.29729541,585.3,584.77,3.556]
[1744555688995,0.34171094,585.29,584.77,3.556]
[1744555689188,0.29729541,585.28,584.77,3.556]
[1744555689493,0.34172262,585.27,584.77,3.556]
[1744555689693,0.29729541,585.26,584.77,3.556]
[1744555689894,0.63902387,585.26,584.77,3.556]
[1744555690193,0.29729541,585.25,584.77,3.556]
[1744555694396,0.34172846,585.26,584.77,3.556]
[1744555696497,0.29726651,585.25,584.77,3.556]
[1744555697302,0.34172846,585.26,584.77,3.556]
[1744555697502,0.29726266,585.25,584.77,3.556]
[1744555701910,0.34172846,585.26,584.77,3.556]
[1744555702210,0.29729316,585.25,584.77,3.556]
[1744555702411,0.34172846,585.26,584.77,3.556]
[1744555703409,0.34172846,585.26,584.77,3.54403944]
[1744555703614,0.34172846,585.26,584.77,3.066]
[1744555707112,0.29671113,585.25,584.77,3.066]
[1744555711523,0.34172846,585.26,584.77,3.066]
[1744555711718,0.29670981,585.25,584.77,3.066]
[1744555715229,0.34172846,585.26,584.77,3.066]
[1744555715524,0.29670782,585.25,584.77,3.066]
[1744555716428,0.34172846,585.26,584.77,3.066]